bitfinex-derivatives/quotes_BTCF0:USTF0_20250608
["timestamp","ask_amount","ask_price","bid_price","bid_amount"]
[1749384169885,0.189129,105700.0,105690.0,1.02664118]
[1749384170088,0.925459,105700.0,105690.0,0.93505078]
[1749384170280,0.925459,105700.0,105690.0,1.21883319]
[1749384171088,0.925459,105700.0,105690.0,1.17154699]
[1749384171285,0.925459,105700.0,105690.0,1.20099635]
[1749384172781,0.925459,105700.0,105690.0,0.48705759]
[1749384172985,1.356299,105700.0,105690.0,0.45785531]
[1749384173299,0.1891469,105690.0,105680.0,0.78528747]
[1749384173494,0.94524122,105690.0,105680.0,1.16528747]
[1749384173788,0.94524122,105690.0,105680.0,0.73444747]
[1749384177786,0.94524122,105690.0,105680.0,0.68715637]
[1749384179089,0.94524122,105690.0,105680.0,1.11803637]
[1749384180087,0.96375122,105690.0,105680.0,1.11803637]
[1749384185690,0.96375122,105690.0,105680.0,1.12208515]
[1749384186390,0.96375122,105690.0,105680.0,1.12252515]
[1749384186595,0.96375122,105690.0,105680.0,0.50204655]
[1749384186792,0.96375122,105690.0,105680.0,0.13146249]
[1749384186995,0.96375122,105690.0,105680.0,0.13146932]
[1749384187199,1.39515122,105690.0,105680.0,0.13146932]
[1749384187391,1.44515122,105690.0,105680.0,0.13148067]
[1749384187697,1.20600432,105690.0,105670.0,0.11785531]
[1749384187903,0.8962948,105680.0,105670.0,0.45785531]
[1749384188095,0.8962948,105680.0,105670.0,0.35361423]
[1749384188393,0.8962948,105680.0,105670.0,0.35366797]
[1749384188593,0.8962948,105680.0,105670.0,0.34]
[1749384188794,0.8962948,105680.0,105670.0,0.35467893]
[1749384188996,0.8962948,105680.0,105670.0,0.54486164]
[1749384189191,0.8962948,105680.0,105670.0,0.54486166]
[1749384189388,0.8962948,105680.0,105670.0,0.341]
[1749384189597,0.8962948,105680.0,105670.0,0.3111827]
[1749384189797,0.8962948,105680.0,105670.0,0.122]
[1749384190099,0.8962948,105680.0,105670.0,0.3111827]
[1749384190288,0.8962948,105680.0,105670.0,0.204863]
[1749384190596,0.8962948,105680.0,105670.0,0.1911827]
[1749384190797,0.8962948,105680.0,105670.0,0.20486296]
[1749384190995,0.8962948,105680.0,105670.0,0.1911827]
[1749384191195,0.8962948,105680.0,105670.0,0.20492092]
[1749384191888,0.9049048,105680.0,105670.0,0.1911827]
[1749384192093,0.1891827,105670.0,105660.0,0.00014246]
[1749384192294,1.3602527,105670.0,105660.0,0.35934306]
[1749384192593,1.37902813,105670.0,105660.0,0.17014246]
[1749384192998,1.37902813,105670.0,105660.0,0.00014246]
[1749384193500,1.38002813,105670.0,105660.0,0.00014246]
[1749384193999,1.38002813,105670.0,105660.0,0.18934296]
[1749384194200,0.98505947,105670.0,105660.0,0.18934296]
[1749384194400,1.41633947,105670.0,105660.0,0.00014246]
[1749384195302,1.38206813,105670.0,105660.0,0.00014246]
[1749384196202,1.41819618,105670.0,105660.0,0.00014246]
[1749384196389,1.38206813,105670.0,105660.0,0.00014246]
[1749384199597,0.1892181,105650.0,105640.0,0.4776987]
[1749384199797,0.1892181,105650.0,105640.0,1.376127]
[1749384199992,0.1892181,105650.0,105640.0,1.35028463]
[1749384200298,0.1892181,105650.0,105640.0,1.42083164]
[1749384200500,0.2527181,105650.0,105640.0,1.42083164]
[1749384200803,0.2847181,105650.0,105640.0,1.35773164]
[1749384202005,0.2847181,105650.0,105640.0,1.25817164]
[1749384202201,0.5675481,105650.0,105640.0,0.82705164]
[1749384202407,0.58677688,105650.0,105640.0,1.21178334]
[1749384202706,0.58677688,105650.0,105640.0,1.16447504]
[1749384203911,0.58677688,105650.0,105640.0,0.73343504]
[1749384204107,0.58677688,105650.0,105640.0,1.16443504]
[1749384205408,0.58677688,105650.0,105640.0,0.73343504]
[1749384205609,0.58677688,105650.0,105640.0,1.16476854]
[1749384206712,0.58677688,105650.0,105640.0,0.97553294]
[1749384206916,0.96609688,105650.0,105640.0,0.52782028]
[1749384207212,0.96609688,105650.0,105640.0,0.95908728]
[1749384207612,0.96609688,105650.0,105640.0,1.14832248]
[1749384208108,0.96609688,105650.0,105640.0,1.14833016]
[1749384208312,0.96609688,105650.0,105640.0,1.14833019]
[1749384208510,0.96609688,105650.0,105640.0,1.13448814]
[1749384209112,0.96609688,105650.0,105640.0,1.14831808]
[1749384209318,0.96609688,105650.0,105640.0,1.13448814]
[1749384209510,0.96609688,105650.0,105640.0,1.14831803]
[1749384209903,0.96609688,105650.0,105640.0,1.14823803]
[1749384210108,0.96609688,105650.0,105640.0,1.14824667]
[1749384210510,0.96609688,105650.0,105640.0,1.14824748]
[1749384210710,0.96609688,105650.0,105640.0,1.13440814]
[1749384210912,0.96609688,105650.0,105640.0,1.14826368]
[1749384211114,0.96609688,105650.0,105640.0,1.148266]
[1749384211314,0.96609688,105650.0,105640.0,1.13440814]
[1749384211514,0.96609688,105650.0,105640.0,1.14826678]
[1749384211713,0.96609688,105650.0,105640.0,1.13440814]
[1749384212205,0.96609688,105650.0,105640.0,1.14826671]
[1749384213018,0.96609688,105650.0,105640.0,1.13440814]
[1749384213517,0.96609688,105650.0,105640.0,1.14826672]
[1749384213714,0.96609688,105650.0,105640.0,0.71710591]
[1749384213914,0.96609688,105650.0,105640.0,1.13432814]
[1749384214105,0.96609688,105650.0,105640.0,1.14818513]
[1749384214309,0.96609688,105650.0,105640.0,1.13837692]
[1749384215119,0.96609688,105650.0,105640.0,0.70729692]
[1749384215323,0.96609688,105650.0,105640.0,1.15219475]
[1749384215623,0.77687878,105650.0,105640.0,1.15219476]
[1749384215818,0.96629598,105650.0,105640.0,1.18460446]
[1749384216017,0.77707878,105650.0,105640.0,1.23483692]
[1749384216218,0.03794878,105650.0,105640.0,1.59563692]
[1749384216413,0.03774878,105650.0,105640.0,1.6248392]
[1749384216716,0.03774878,105650.0,105640.0,1.47778161]
[1749384216912,0.03774878,105650.0,105640.0,1.6248392]
[1749384217122,0.03794878,105650.0,105640.0,1.63851141]
[1749384217420,0.03774878,105650.0,105640.0,1.63851141]
[1749384217622,0.03794878,105650.0,105640.0,1.63850278]
[1749384217822,0.03794878,105650.0,105640.0,1.69736701]
[1749384218021,0.03794878,105650.0,105640.0,1.69736705]
[1749384218334,0.03794878,105650.0,105640.0,1.68370342]
[1749384218521,0.03794878,105650.0,105640.0,1.69738477]
[1749384218712,0.03794878,105650.0,105640.0,1.68370342]
[1749384219416,0.03794878,105650.0,105640.0,1.69738477]
[1749384219818,0.03794878,105650.0,105640.0,1.69734985]
[1749384220128,0.03794878,105650.0,105640.0,1.69734737]
[1749384220322,0.03794878,105650.0,105640.0,1.68370342]
[1749384220516,0.03794878,105650.0,105640.0,1.69732749]
[1749384220717,0.03794878,105650.0,105640.0,1.69732516]
[1749384221022,0.03794878,105650.0,105640.0,1.68370342]
[1749384221219,0.03794878,105650.0,105640.0,1.69732519]
[1749384221421,0.03794878,105650.0,105640.0,1.68370342]
[1749384221722,0.03794878,105650.0,105640.0,1.69732521]
[1749384222023,0.03794878,105650.0,105640.0,1.69734955]
[1749384222425,0.03794878,105650.0,105640.0,1.69734954]
[1749384222924,0.01942878,105650.0,105640.0,1.69734954]
[1749384223525,0.01942878,105650.0,105640.0,1.69736114]
[1749384224725,0.01942878,105650.0,105640.0,1.69732844]
[1749384225319,0.01942878,105650.0,105640.0,1.68370342]
[1749384225530,0.01942878,105650.0,105640.0,1.69732846]
[1749384225722,0.01942878,105650.0,105640.0,1.68370342]
[1749384225918,0.01942878,105650.0,105640.0,1.69732845]
[1749384226324,0.01942878,105650.0,105640.0,1.69732848]
[1749384226526,0.01942878,105650.0,105640.0,1.68370342]
[1749384226827,0.01942878,105650.0,105640.0,1.69732845]
[1749384227020,0.01942878,105650.0,105640.0,1.69732846]
[1749384227220,0.01942878,105650.0,105640.0,1.68370342]
[1749384227724,0.01942878,105650.0,105640.0,1.71080473]
[1749384227918,0.01942878,105650.0,105640.0,1.50484684]
[1749384228123,0.01942878,105650.0,105640.0,1.50484704]
[1749384228328,0.01942878,105650.0,105640.0,1.49133414]
[1749384228925,0.01942878,105650.0,105640.0,1.50483848]
[1749384229124,0.01942878,105650.0,105640.0,1.50487133]
[1749384229324,0.01942878,105650.0,105640.0,1.50487011]
[1749384229720,0.01942878,105650.0,105640.0,1.63878366]
[1749384230126,0.01942878,105650.0,105640.0,1.65231961]
[1749384230428,0.01942878,105650.0,105640.0,1.63878366]
[1749384230825,0.01942878,105650.0,105640.0,1.6523198]
[1749384231133,0.01942878,105650.0,105640.0,1.63878366]
[1749384231328,0.01942878,105650.0,105640.0,1.73874366]
[1749384231633,0.01942878,105650.0,105640.0,1.75227975]
[1749384231834,0.01942878,105650.0,105640.0,1.73874366]
[1749384232025,0.01942878,105650.0,105640.0,1.75227978]
[1749384232231,0.01942878,105650.0,105640.0,1.73874366]
[1749384232631,0.01942878,105650.0,105640.0,1.7522542]
[1749384232832,0.01942878,105650.0,105640.0,1.73874366]
[1749384233136,0.01942878,105650.0,105640.0,1.79721595]
[1749384233338,0.01942878,105650.0,105640.0,1.81072653]
[1749384233636,0.01942878,105650.0,105640.0,1.79721595]
[1749384233934,0.01942878,105650.0,105640.0,1.81072653]
[1749384234231,0.01942878,105650.0,105640.0,1.81072494]
[1749384234538,0.01942878,105650.0,105640.0,1.79721595]
[1749384234931,0.01942878,105650.0,105640.0,1.81072494]
[1749384235236,0.01942878,105650.0,105640.0,1.79721595]
[1749384235437,0.01922878,105650.0,105640.0,1.81072496]
[1749384235739,0.01942878,105650.0,105640.0,1.79721595]
[1749384236338,0.01942878,105650.0,105640.0,1.81073183]
[1749384236837,0.01942878,105650.0,105640.0,1.81073186]
[1749384237337,0.01942878,105650.0,105640.0,1.79721595]
[1749384237537,0.01942878,105650.0,105640.0,1.81073185]
[1749384237737,0.01942878,105650.0,105640.0,1.79721595]
[1749384238032,0.01942878,105650.0,105640.0,1.81073185]
[1749384238627,0.01942878,105650.0,105640.0,1.79721595]
[1749384240038,0.01942878,105650.0,105640.0,1.81076293]
[1749384240536,0.01942878,105650.0,105640.0,1.81075946]
[1749384240735,0.01942878,105650.0,105640.0,1.60483768]
[1749384240939,0.01942878,105650.0,105640.0,1.6048363]
[1749384241237,0.01942878,105650.0,105640.0,1.60483629]
[1749384241734,0.11411,105660.0,105650.0,0.1892163]
[1749384241939,0.39694,105660.0,105650.0,1.11647237]
[1749384242233,0.39714,105660.0,105650.0,1.11647237]
[1749384243738,0.39714,105660.0,105650.0,1.12746205]
[1749384243939,0.39714,105660.0,105650.0,1.11647237]
[1749384244234,0.40563,105660.0,105650.0,1.11647237]
[1749384244635,0.40563,105660.0,105650.0,1.12746204]
[1749384244835,0.40563,105660.0,105650.0,1.12746205]
[1749384245035,0.40563,105660.0,105650.0,1.12746204]
[1749384245539,0.1228,105660.0,105650.0,1.11647237]
[1749384245741,0.1228,105660.0,105650.0,1.12747007]
[1749384245937,0.1226,105660.0,105650.0,1.12747007]
[1749384246143,0.1226,105660.0,105650.0,1.12746933]
[1749384246443,0.1226,105660.0,105650.0,0.9100163]
[1749384246742,0.1228,105660.0,105650.0,0.92101275]
[1749384246944,0.1228,105660.0,105650.0,0.92101264]
[1749384247146,0.1228,105660.0,105650.0,0.9100163]
[1749384247535,0.1228,105660.0,105650.0,0.92101264]
[1749384247740,0.1228,105660.0,105650.0,0.92199495]
[1749384247943,0.1228,105660.0,105650.0,0.9120163]
[1749384248344,0.1228,105660.0,105650.0,0.92299495]
[1749384248837,0.10429,105660.0,105650.0,0.98829495]
[1749384249344,0.10429,105660.0,105650.0,0.9773163]
[1749384249545,0.10429,105660.0,105650.0,0.98829309]
[1749384249944,0.10429,105660.0,105650.0,0.9882931]
[1749384250346,0.00869,105660.0,105650.0,0.9120163]
[1749384250648,0.00869,105660.0,105650.0,1.31212719]
[1749384250854,0.00869,105660.0,105650.0,1.31212704]
[1749384251155,0.11101,105670.0,105660.0,0.1891984]
[1749384251448,0.11101,105670.0,105660.0,1.70322893]
[1749384251648,0.00014246,105680.0,105670.0,0.1891805]
[1749384251843,0.09264246,105680.0,105670.0,1.12634448]
[1749384252049,0.09284246,105680.0,105670.0,1.13731704]
[1749384252643,0.09284246,105680.0,105670.0,1.12634448]
[1749384253052,0.09284246,105680.0,105670.0,1.14359919]
[1749384253245,0.09284246,105680.0,105670.0,1.15455268]
[1749384253550,0.09284246,105680.0,105670.0,1.15455246]
[1749384253851,0.09284246,105680.0,105670.0,1.14359919]
[1749384254052,0.09484246,105680.0,105670.0,1.15455246]
[1749384254442,0.09284246,105680.0,105670.0,1.14359919]
[1749384255542,0.00034246,105680.0,105670.0,1.14359919]
[1749384255742,0.1891267,105700.0,105690.0,0.2836986]
[1749384255938,0.1891267,105700.0,105690.0,1.07072373]
[1749384256142,0.4721567,105700.0,105690.0,1.07072373]
[1749384256856,0.37903,105700.0,105690.0,1.07072373]
[1749384257252,0.38103,105700.0,105690.0,1.09129953]
[1749384257456,0.38303,105700.0,105690.0,1.44114288]
[1749384259854,0.5721567,105700.0,105690.0,1.44114288]
[1749384260956,0.5721567,105700.0,105690.0,1.44519166]
[1749384262165,0.38303,105700.0,105690.0,1.44519166]
[1749384262551,0.5721567,105700.0,105690.0,1.44491166]
[1749384263360,0.5721567,105700.0,105690.0,1.01315166]
[1749384263561,0.5721567,105700.0,105690.0,1.44487166]
[1749384266857,0.38303,105700.0,105690.0,1.46226312]
[1749384269655,0.38303,105700.0,105690.0,1.43271105]
[1749384270354,0.38283,105700.0,105690.0,1.43271105]
[1749384270556,0.38303,105700.0,105690.0,1.55041118]
[1749384273667,0.38303,105700.0,105690.0,1.46226312]
[1749384275668,0.38303,105700.0,105690.0,1.47316192]
[1749384276168,0.38303,105700.0,105690.0,1.11236192]
[1749384276369,0.38303,105700.0,105690.0,1.46226312]
[1749384276562,0.38303,105700.0,105690.0,1.47316186]
[1749384276757,0.38303,105700.0,105690.0,1.47316192]
[1749384276961,0.38303,105700.0,105690.0,1.47316191]
[1749384277269,0.38303,105700.0,105690.0,1.46226312]
[1749384277469,0.38303,105700.0,105690.0,1.47316192]
[1749384277969,0.38303,105700.0,105690.0,1.46226312]
[1749384278165,0.38303,105700.0,105690.0,1.10146312]
[1749384278468,0.38303,105700.0,105690.0,1.47316301]
[1749384278764,0.38303,105700.0,105690.0,1.47316296]
[1749384278968,0.38303,105700.0,105690.0,1.47316297]
[1749384279264,0.38303,105700.0,105690.0,1.46911418]
[1749384279665,0.38303,105700.0,105690.0,1.34051421]
[1749384279867,0.38303,105700.0,105690.0,1.59782056]
[1749384280165,0.38303,105700.0,105690.0,1.60182933]
[1749384280364,0.38303,105700.0,105690.0,1.07086932]
[1749384280569,0.38303,105700.0,105690.0,1.59092815]
[1749384281164,0.38303,105700.0,105690.0,1.60182932]
[1749384281765,0.38303,105700.0,105690.0,1.59092815]
[1749384282070,0.38303,105700.0,105690.0,1.60182933]
[1749384282472,0.38303,105700.0,105690.0,1.59092815]
[1749384282663,0.38303,105700.0,105690.0,1.8081933]
[1749384282864,0.38303,105700.0,105690.0,1.79745213]
[1749384283069,0.38303,105700.0,105690.0,1.8083533]
[1749384283268,0.38303,105700.0,105690.0,1.79745213]
[1749384283572,0.38303,105700.0,105690.0,1.59108815]
[1749384283772,0.38303,105700.0,105690.0,1.80835571]
[1749384283972,0.38303,105700.0,105690.0,1.8083557]
[1749384284173,0.38303,105700.0,105690.0,1.79340335]
[1749384284565,0.38303,105700.0,105690.0,1.80430693]
[1749384284765,0.38303,105700.0,105690.0,1.79340335]
[1749384284971,0.5721567,105700.0,105690.0,1.2526642]
[1749384285171,0.5721567,105700.0,105690.0,1.03311388]
[1749384285373,0.5721567,105700.0,105690.0,0.48334467]
[1749384285577,0.5721567,105700.0,105690.0,0.76664474]
[1749384285773,0.5721567,105700.0,105690.0,0.74925349]
[1749384286069,0.9329567,105700.0,105690.0,0.73834763]
[1749384286277,0.9329567,105700.0,105690.0,0.73860976]
[1749384289675,0.9329567,105700.0,105690.0,0.73848976]
[1749384290669,0.9329567,105700.0,105690.0,0.73844976]
[1749384292679,0.9329567,105700.0,105690.0,0.30708976]
[1749384297287,0.9329567,105700.0,105690.0,0.48708976]
[1749384297488,0.9329567,105700.0,105690.0,0.49113854]
[1749384299391,0.9329567,105700.0,105690.0,0.48708976]
[1749384300779,0.9329567,105700.0,105690.0,0.50466562]
[1749384300990,0.9327567,105700.0,105690.0,0.56826562]
[1749384301183,0.38303,105700.0,105690.0,0.92906562]
[1749384301379,0.5721567,105700.0,105690.0,0.96146562]
[1749384302492,0.5721567,105700.0,105690.0,0.9655144]
[1749384303391,0.5721567,105700.0,105690.0,0.9764669]
[1749384303588,0.38303,105700.0,105690.0,0.9764669]
[1749384303792,0.5721566,105700.0,105690.0,0.9764669]
[1749384304095,0.5721566,105700.0,105690.0,0.97646103]
[1749384304392,0.5721566,105700.0,105690.0,0.97646139]
[1749384304789,0.5721566,105700.0,105690.0,0.9655144]
[1749384304991,0.5721566,105700.0,105690.0,0.97646138]
[1749384305389,0.1933266,105700.0,105690.0,0.97646138]
[1749384305585,0.0042,105700.0,105690.0,1.29532138]
[1749384305788,0.004,105700.0,105690.0,1.14819378]
[1749384305992,0.004,105700.0,105690.0,1.35455735]
[1749384306191,0.0042,105700.0,105690.0,1.35455724]
[1749384306693,0.0042,105700.0,105690.0,1.35455723]
[1749384306893,0.0042,105700.0,105690.0,1.34361322]
[1749384307094,0.0042,105700.0,105690.0,1.35455725]
[1749384307492,0.004,105700.0,105690.0,1.35455725]
[1749384307692,0.0042,105700.0,105690.0,1.34361322]
[1749384307893,0.0042,105700.0,105690.0,1.35455964]
[1749384308092,0.0042,105700.0,105690.0,1.34361322]
[1749384308293,0.0042,105700.0,105690.0,1.35455964]
[1749384308797,0.0042,105700.0,105690.0,1.35455933]
[1749384309183,0.0042,105700.0,105690.0,1.35450515]
[1749384309390,0.0042,105700.0,105690.0,1.35450516]
[1749384309694,0.0042,105700.0,105690.0,1.35045638]
[1749384309889,0.0042,105700.0,105690.0,1.33956444]
[1749384310099,0.0042,105700.0,105690.0,1.35045633]
[1749384310694,0.0042,105700.0,105690.0,1.35450511]
[1749384311398,0.0042,105700.0,105690.0,1.35450273]
[1749384312599,0.0042,105700.0,105690.0,1.35449897]
[1749384312791,0.0042,105700.0,105690.0,1.34361322]
[1749384312991,0.0042,105700.0,105690.0,1.35449897]
[1749384313400,0.0042,105700.0,105690.0,1.34361322]
[1749384314003,0.0042,105700.0,105690.0,1.35448709]
[1749384314203,0.0042,105700.0,105690.0,1.34361322]
[1749384314501,0.0042,105700.0,105690.0,1.77465322]
[1749384314702,0.0042,105700.0,105690.0,1.78552708]
[1749384315001,0.0042,105700.0,105690.0,1.77465322]
[1749384315201,0.0042,105700.0,105690.0,1.78552602]
[1749384315401,0.0042,105700.0,105690.0,1.78552589]
[1749384316194,0.0042,105700.0,105690.0,1.77465322]
[1749384316391,0.0042,105700.0,105690.0,1.78552437]
[1749384316699,0.0042,105700.0,105690.0,1.78147559]
[1749384316895,0.0042,105700.0,105690.0,1.78147551]
[1749384317094,0.0042,105700.0,105690.0,1.78147548]
[1749384317299,0.0042,105700.0,105690.0,1.77060444]
[1749384317499,0.0042,105700.0,105690.0,1.78147548]
[1749384318203,0.0042,105700.0,105690.0,1.77060444]
[1749384318804,0.0042,105700.0,105690.0,1.78147457]
[1749384319006,0.0042,105700.0,105690.0,1.77060444]
[1749384319209,0.0042,105700.0,105690.0,1.7814712]
[1749384320105,0.0042,105700.0,105690.0,1.77060444]
[1749384320305,0.0042,105700.0,105690.0,1.7814712]
[1749384320806,0.0042,105700.0,105690.0,1.91760188]
[1749384321002,0.0042,105700.0,105690.0,1.92846864]
[1749384321204,0.0042,105700.0,105690.0,1.91760188]
[1749384321606,0.0042,105700.0,105690.0,1.92846966]
[1749384321806,0.0042,105700.0,105690.0,1.77060444]
[1749384322007,0.0042,105700.0,105690.0,1.40980444]
[1749384322306,0.0042,105700.0,105690.0,2.13128444]
[1749384322607,0.0042,105700.0,105690.0,2.14215167]
[1749384323003,0.0042,105700.0,105690.0,2.14215166]
[1749384323204,0.0042,105700.0,105690.0,1.51555053]
[1749384323500,0.5719566,105700.0,105690.0,1.26521314]
[1749384323703,0.5719566,105700.0,105690.0,1.26521373]
[1749384323904,0.5719566,105700.0,105690.0,1.23583611]
[1749384324203,0.5719566,105700.0,105690.0,1.23583619]
[1749384324409,0.5719566,105700.0,105690.0,1.22496762]
[1749384324706,0.5719566,105700.0,105690.0,1.25434647]
[1749384324908,0.29317538,105700.0,105690.0,1.25434647]
[1749384325117,0.57600538,105700.0,105690.0,1.25434647]
[1749384326713,0.57600538,105700.0,105690.0,1.15466647]
[1749384329815,0.57600538,105700.0,105690.0,1.36103045]
[1749384330205,0.38687878,105700.0,105690.0,1.36103045]
[1749384331110,0.57600528,105700.0,105690.0,1.36103045]
[1749384331311,0.57600528,105700.0,105690.0,1.15466647]
[1749384332510,0.57600528,105700.0,105690.0,1.27244777]
[1749384333114,0.57600528,105700.0,105690.0,1.12542176]
[1749384340014,0.38687878,105700.0,105690.0,1.48622176]
[1749384340221,0.38687878,105700.0,105690.0,1.51546647]
[1749384340420,0.38667878,105700.0,105690.0,1.51546647]
[1749384340719,0.38687878,105700.0,105690.0,1.54796647]
[1749384340924,0.38687878,105700.0,105690.0,1.57956647]
[1749384342226,0.57600518,105700.0,105690.0,1.57956647]
[1749384344128,0.5719564,105700.0,105690.0,1.57956647]
[1749384345120,0.5719564,105700.0,105690.0,1.51546647]
[1749384347231,0.57600518,105700.0,105690.0,1.51546647]
[1749384350246,0.5719564,105700.0,105690.0,1.51546647]
[1749384351434,0.57600518,105700.0,105690.0,1.52639192]
[1749384353343,0.57600518,105700.0,105690.0,1.52638891]
[1749384353543,0.57600518,105700.0,105690.0,1.51546647]
[1749384354242,0.57600518,105700.0,105690.0,1.52638838]
[1749384354443,0.57600518,105700.0,105690.0,1.51546647]
[1749384354742,0.38687878,105700.0,105690.0,1.52638838]
[1749384354943,0.57600508,105700.0,105690.0,1.52638838]
[1749384355447,0.5719563,105700.0,105690.0,1.52638838]
[1749384355641,0.28703,105700.0,105690.0,1.52639068]
[1749384355844,0.28703,105700.0,105690.0,1.62039068]
[1749384356041,0.28703,105700.0,105690.0,1.62039024]
[1749384356343,0.28703,105700.0,105690.0,1.81583045]
[1749384356942,0.28703,105700.0,105690.0,1.82675412]
[1749384357141,0.28703,105700.0,105690.0,1.81583045]
[1749384357342,0.28703,105700.0,105690.0,1.82675406]
[1749384357642,0.28703,105700.0,105690.0,1.66880444]
[1749384358037,0.28703,105700.0,105690.0,1.67972773]
[1749384358234,0.28703,105700.0,105690.0,1.66880444]
[1749384358442,0.28703,105700.0,105690.0,1.67972779]
[1749384358738,0.28703,105700.0,105690.0,1.67972665]
[1749384358940,0.28703,105700.0,105690.0,1.66880444]
[1749384359140,0.31903,105700.0,105690.0,1.82713984]
[1749384359439,0.31903,105700.0,105690.0,1.67972679]
[1749384359746,0.31903,105700.0,105690.0,1.82714576]
[1749384359947,0.31903,105700.0,105690.0,1.81622341]
[1749384360143,0.31903,105700.0,105690.0,1.60985943]
[1749384360347,0.31903,105700.0,105690.0,1.62078151]
[1749384360548,0.31903,105700.0,105690.0,1.62078152]
[1749384360848,0.35123,105700.0,105690.0,1.60985943]
[1749384361343,0.35123,105700.0,105690.0,1.62078152]
[1749384361548,0.38123,105700.0,105690.0,1.62078152]
[1749384361747,0.38123,105700.0,105690.0,1.62078708]
[1749384361947,0.38123,105700.0,105690.0,1.60985943]
[1749384362449,0.38123,105700.0,105690.0,1.62078708]
[1749384363148,0.5703563,105700.0,105690.0,1.62078708]
[1749384363350,0.5703563,105700.0,105690.0,1.60985943]
[1749384363555,0.5703563,105700.0,105690.0,1.62078685]
[1749384363846,0.5703563,105700.0,105690.0,1.60985943]
[1749384364052,0.5703563,105700.0,105690.0,1.6207868]
[1749384364246,0.5703563,105700.0,105690.0,1.60985943]
[1749384364557,0.38123,105700.0,105690.0,1.5883868]
[1749384364945,0.38123,105700.0,105690.0,1.54595943]
[1749384365146,0.38123,105700.0,105690.0,1.55688408]
[1749384365650,0.38123,105700.0,105690.0,1.55688402]
[1749384365850,0.38123,105700.0,105690.0,1.54595943]
[1749384366249,0.38123,105700.0,105690.0,1.556884]
[1749384367148,0.38123,105700.0,105690.0,1.54595943]
[1749384367348,0.5703563,105700.0,105690.0,1.54595943]
[1749384367549,0.38123,105700.0,105690.0,1.55688397]
[1749384367753,0.38123,105700.0,105690.0,1.54595943]
[1749384367953,0.38123,105700.0,105690.0,1.55688401]
[1749384368656,0.38123,105700.0,105690.0,1.55688492]
[1749384368657,0.5703563,105700.0,105690.0,1.55688492]
[1749384368853,0.5703563,105700.0,105690.0,1.55688491]
[1749384369053,0.5703563,105700.0,105690.0,1.54595943]
[1749384369261,0.5703563,105700.0,105690.0,1.55688493]
[1749384369452,0.5703563,105700.0,105690.0,1.54595943]
[1749384369748,0.5703563,105700.0,105690.0,1.52678502]
[1749384369960,0.5703563,105700.0,105690.0,1.58573003]
[1749384370760,0.5703563,105700.0,105690.0,1.58573075]
[1749384370961,0.5703563,105700.0,105690.0,1.57480444]
[1749384371160,0.5703563,105700.0,105690.0,1.58573082]
[1749384371457,0.5703563,105700.0,105690.0,1.58573151]
[1749384372658,0.5703563,105700.0,105690.0,1.58573186]
[1749384372857,0.5703563,105700.0,105690.0,1.58573177]
[1749384373156,0.5703563,105700.0,105690.0,1.57476444]
[1749384373347,0.5703563,105700.0,105690.0,1.58569165]
[1749384374160,0.5703563,105700.0,105690.0,1.57476444]
[1749384374354,0.5703563,105700.0,105690.0,1.58569164]
[1749384374660,0.57440508,105700.0,105690.0,1.14388444]
[1749384374848,0.93520508,105700.0,105690.0,0.92389777]
[1749384375047,0.57440508,105700.0,105690.0,0.21729241]
[1749384375253,0.57440508,105700.0,105690.0,0.33660676]
[1749384375549,0.57440508,105700.0,105690.0,0.45457091]
[1749384376155,0.93520508,105700.0,105690.0,0.45457091]
[1749384376350,0.94478595,105700.0,105690.0,0.45457091]
[1749384376552,0.94478595,105700.0,105690.0,0.30710915]
[1749384386765,0.93520508,105700.0,105690.0,0.30710915]
[1749384388070,0.57440508,105700.0,105690.0,0.30710915]
[1749384388370,0.57420508,105700.0,105690.0,0.30710915]
[1749384388569,0.57440508,105700.0,105690.0,0.45457091]
[1749384388769,0.5703563,105700.0,105690.0,0.45457091]
[1749384389461,0.2875263,105700.0,105690.0,0.49457091]
[1749384389765,0.5703563,105700.0,105690.0,0.55595421]
[1749384389966,0.5701563,105700.0,105690.0,0.40849245]
[1749384390271,0.5703563,105700.0,105690.0,0.40849245]
[1749384400081,0.57440508,105700.0,105690.0,0.43810676]
[1749384402283,0.48020178,105700.0,105690.0,0.490645]
[1749384402483,0.48020178,105700.0,105690.0,0.6794734]
[1749384402677,0.48020178,105700.0,105690.0,0.67947332]
[1749384402981,0.476153,105700.0,105690.0,0.66860676]
[1749384403175,0.509353,105700.0,105690.0,0.66860676]
[1749384403377,0.541553,105700.0,105690.0,0.66860676]
[1749384403578,0.571553,105700.0,105690.0,0.66860676]
[1749384406188,0.57560178,105700.0,105690.0,0.66860676]
[1749384406491,0.57560178,105700.0,105690.0,1.04028676]
[1749384406687,0.57560178,105700.0,105690.0,1.01028676]
[1749384418905,0.57560178,105700.0,105690.0,1.02116412]
[1749384419206,0.57560178,105700.0,105690.0,1.01028676]
[1749384419397,0.57560178,105700.0,105690.0,1.02116412]
[1749384419597,0.57560178,105700.0,105690.0,1.01028676]
[1749384419798,0.57560178,105700.0,105690.0,1.02116412]
[1749384419993,0.57560178,105700.0,105690.0,1.01028676]
[1749384420391,0.57560178,105700.0,105690.0,1.02116412]
[1749384420599,0.57560178,105700.0,105690.0,1.01028676]
[1749384420796,0.57560178,105700.0,105690.0,1.02116412]
[1749384421095,0.57560178,105700.0,105690.0,1.01028676]
[1749384422101,0.93640178,105700.0,105690.0,1.00952676]
[1749384423906,0.57560178,105700.0,105690.0,1.00952676]
[1749384424306,0.93640178,105700.0,105690.0,1.00952676]
[1749384424605,0.93640178,105700.0,105690.0,0.57660676]
[1749384424807,0.93640178,105700.0,105690.0,1.00944676]
[1749384433413,0.93640178,105700.0,105690.0,0.57660676]
[1749384433712,0.93640178,105700.0,105690.0,1.00892676]
[1749384438311,0.93640178,105700.0,105690.0,1.01980893]
[1749384438614,0.93640178,105700.0,105690.0,0.77892676]
[1749384438908,0.93640178,105700.0,105690.0,0.78980893]
[1749384439308,0.93640178,105700.0,105690.0,0.77892676]
[1749384439614,0.93640178,105700.0,105690.0,0.78980893]
[1749384439814,0.93640178,105700.0,105690.0,0.77892676]
[1749384440613,0.93640178,105700.0,105690.0,0.34660676]
[1749384440815,0.93640178,105700.0,105690.0,0.77868676]
[1749384441011,0.93640178,105700.0,105690.0,0.78956999]
[1749384441407,0.93640178,105700.0,105690.0,0.77868676]
[1749384452826,0.57560178,105700.0,105690.0,0.77868676]
[1749384453024,0.93640178,105700.0,105690.0,0.77868676]
[1749384465931,0.932353,105700.0,105690.0,0.77868676]
[1749384466934,0.93640178,105700.0,105690.0,0.77868676]
[1749384469042,0.57560178,105700.0,105690.0,0.77868676]
[1749384469235,0.93640178,105700.0,105690.0,0.77868676]
[1749384469643,0.57560178,105700.0,105690.0,0.77868676]
[1749384469933,0.93640178,105700.0,105690.0,0.77868676]
[1749384476843,0.9553568,105700.0,105690.0,0.77868676]